fUSD/lending_fUSD_20241027
["ID","MTS","AMOUNT","RATE_DAILY","PERIOD"]
[340900482,1730045738661,-1030.2,0.000439,60]
[340900483,1730045738688,-763.61,0.00043957,30]
[340900484,1730045738714,-763.61,0.00043957,30]
[340900485,1730045738739,-763.61,0.00043957,30]
[340900486,1730045738787,-763.61,0.00043957,30]
[340900487,1730045738834,-763.61,0.00043957,30]
[340900488,1730045738876,-763.61,0.00043957,30]
[340900489,1730045738921,-763.84817467,0.00043957,30]
[340900490,1730045738965,-1201.85,0.00043957,30]
[340900491,1730045739007,-1201.85,0.00043957,30]
[340900492,1730045739046,-1201.85,0.00043957,30]
[340900493,1730045739088,-1201.85,0.00043957,30]
[340900494,1730045739134,-1201.85,0.00043957,30]
[340900495,1730045739179,-1201.85,0.00043957,30]
[340900496,1730045739220,-1201.87394957,0.00043957,30]
[340900497,1730045739260,-630.01465657,0.00043957,30]
[340900498,1730045739298,-583.65654437,0.00043957,30]
[340900499,1730045739338,-500.0,0.00043957,30]
[340900500,1730045739379,-500.0,0.00043957,30]
[340900501,1730045739420,-278.02025519,0.00043957,30]
[340900502,1730045739463,-2184.24,0.00043957,30]
[340900503,1730045739594,-2184.24,0.00043957,30]
[340900504,1730045739630,-2184.24,0.00043957,30]
[340900505,1730045739659,-2184.24,0.00043957,30]
[340900506,1730045739688,-2184.24,0.00043957,30]
[340900507,1730045739716,-2184.24,0.00043957,30]
[340900508,1730045739744,-2184.28525301,0.00043957,30]
[340900509,1730045739771,-7042.89,0.00043957,30]
[340900510,1730045739799,-7042.89,0.00043957,30]
[340900511,1730045739827,-7042.89,0.00043957,30]
[340900512,1730045739854,-7042.89,0.00043957,30]
[340900513,1730045739881,-7042.89,0.00043957,30]
[340900514,1730045739909,-7042.89,0.00043957,30]
[340900515,1730045739937,-7042.9665,0.00043957,30]
[340900516,1730045739961,-500.0,0.00043957,30]
[340900517,1730045739987,-500.0,0.00043957,30]
[340900518,1730045740014,-535.58,0.00043957,30]
[340900519,1730045740040,-539.09,0.00043957,30]
[340900520,1730045740065,-539.09,0.00043957,30]
[340900521,1730045740092,-539.09,0.00043957,30]
[340900522,1730045740125,-539.09,0.00043957,30]
[340900523,1730045740152,-539.09,0.00043957,30]
[340900524,1730045740178,-539.09,0.00043957,30]
[340900525,1730045740204,-539.11,0.00043957,30]
[340900526,1730045740231,-1156.52,0.00043957,30]
[340900527,1730045740257,-1156.52,0.00043957,30]
[340900528,1730045740283,-1156.52,0.00043957,30]
[340900529,1730045740310,-1156.52,0.00043957,30]
[340900530,1730045740337,-1156.52,0.00043957,30]
[340900531,1730045740363,-1156.52,0.00043957,30]
[340900532,1730045740392,-1156.73,0.00043957,30]
[340900533,1730045740419,-1274.31,0.00043957,21]
[340900534,1730045740446,-1274.31,0.00043957,21]
[340900535,1730045740472,-1274.31,0.00043957,21]
[340900536,1730045740498,-1274.31,0.00043957,21]
[340900537,1730045740524,-1274.31,0.00043957,21]
[340900538,1730045740549,-1274.31,0.00043957,21]
[340900539,1730045740574,-1274.44090298,0.00043957,21]
[340900540,1730045740600,-1333.91,0.00043957,30]
[340900541,1730045740694,-1333.91,0.00043957,30]
[340900542,1730045740719,-1333.91,0.00043957,30]
[340900543,1730045740746,-1333.91,0.00043957,30]
[340900544,1730045740773,-1333.91,0.00043957,30]
[340900545,1730045740800,-1333.91,0.00043957,30]
[340900546,1730045740826,-1333.95134608,0.00043957,30]
[340900547,1730045740851,-1039.53,0.00043957,30]
[340900548,1730045740876,-1039.53,0.00043957,30]
[340900549,1730045740902,-1039.53,0.00043957,30]
[340900550,1730045740927,-1899.15,0.00043957,30]
[340900551,1730045740953,-1039.53,0.00043957,30]
[340900552,1730045740978,-1899.15,0.00043957,30]
[340900553,1730045741004,-1039.53,0.00043957,30]
[340900554,1730045741030,-1899.15,0.00043957,30]
[340900555,1730045741057,-1039.53,0.00043957,30]
[340900556,1730045741083,-1899.15,0.00043957,30]
[340900557,1730045741112,-1039.63,0.00043957,30]
[340900558,1730045741139,-1899.15,0.00043957,30]
[340900559,1730045741166,-1899.15,0.00043957,30]
[340900560,1730045741192,-1899.15418941,0.00043957,30]
[340900561,1730045741221,-660.5,0.00043958,30]
[340900562,1730045741248,-660.5,0.00043958,30]
[340900563,1730045741274,-660.5,0.00043958,30]
[340900564,1730045741300,-660.5,0.00043958,30]
[340900565,1730045741326,-660.5,0.00043958,30]
[340900566,1730045741351,-660.65007714,0.00043958,30]
[340900567,1730045741377,-629.59,0.00043958,30]
[340900568,1730045741402,-474.47681668,0.00043958,30]
[340900569,1730045741429,-843.45,0.00043958,30]
[340900570,1730045741455,-843.45,0.00043958,30]
[340900571,1730045741480,-843.45,0.00043958,30]
[340900572,1730045741505,-843.45,0.00043958,30]
[340900573,1730045741531,-843.45,0.00043958,30]
[340900574,1730045741557,-843.46160077,0.00043958,30]
[340900575,1730045741583,-1116.59,0.00043958,30]
[340900576,1730045741608,-1116.59,0.00043958,30]
[340900577,1730045741704,-1116.59,0.00043958,30]
[340900578,1730045741730,-1116.59,0.00043958,30]
[340900579,1730045741754,-1116.59,0.00043958,30]
[340900580,1730045741779,-1116.70117217,0.00043958,30]
[340900581,1730045741804,-943.49,0.00043958,30]
[340900582,1730045741828,-943.49,0.00043958,30]
[340900583,1730045741853,-943.49,0.00043958,30]
[340900584,1730045741878,-943.49,0.00043958,30]
[340900585,1730045741903,-943.49,0.00043958,30]
[340900586,1730045741930,-943.49,0.00043958,30]
[340900587,1730045741961,-696.0,0.0004396,60]
[340900588,1730045741985,-500.0,0.0004396,60]
[340900589,1730045742011,-500.0,0.0004396,60]
[340900590,1730045742035,-500.0,0.0004396,60]
[340900591,1730045742060,-793.5,0.00043981,120]
[340900592,1730045742085,-500.0,0.00043981,30]
[340900593,1730045742111,-500.0,0.00043981,30]
[340900594,1730045742136,-500.0,0.00043981,30]
[340900595,1730045742161,-500.0,0.00043981,30]
[340900596,1730045742186,-500.0,0.00043981,30]
[340900597,1730045742210,-500.0,0.00043981,30]
[340900598,1730045742235,-258.9018361,0.00043981,30]
[340900599,1730045742259,-500.0,0.00043981,30]
[340900600,1730045742283,-500.0,0.00043981,30]
[340900601,1730045742307,-500.0,0.00043981,30]
[340900602,1730045742331,-500.0,0.00043981,30]
[340900603,1730045742355,-214.30851754,0.00043981,30]
[340900604,1730045742380,-531.55072853,0.00043981,30]
[340900605,1730045742405,-325.03981775,0.00043981,30]
[340900606,1730045742431,-500.0,0.00043981,30]
[340900607,1730045742455,-488.64885157,0.00043981,30]
[340900608,1730045742480,-693.02,0.00043981,30]
[340900609,1730045742505,-693.02,0.00043981,30]
[340900610,1730045742530,-693.02,0.00043981,30]
[340900611,1730045742555,-693.02,0.00043981,30]
[340900612,1730045742580,-693.02,0.00043981,30]
[340900613,1730045742605,-693.02,0.00043981,30]
[340900614,1730045742631,-693.02,0.00043981,30]
[340900615,1730045742655,-693.02,0.00043981,30]
[340900616,1730045742680,-693.02,0.00043981,30]
[340900617,1730045742706,-693.02,0.00043981,30]
[340900618,1730045742732,-693.02,0.00043981,30]
[340900619,1730045742757,-693.02,0.00043981,30]
[340900620,1730045742781,-693.02,0.00043981,30]
[340900621,1730045742806,-693.02,0.00043981,30]
[340900622,1730045742830,-693.02,0.00043981,30]
[340900623,1730045742854,-693.14893511,0.00043981,30]
[340900624,1730045742880,-765.17,0.00043981,30]
[340900625,1730045742905,-765.17,0.00043981,30]
[340900626,1730045742929,-765.17,0.00043981,30]
[340900627,1730045742954,-765.17,0.00043981,30]
[340900628,1730045742979,-765.17,0.00043981,30]
[340900629,1730045743073,-765.17,0.00043981,30]
[340900630,1730045743098,-765.17,0.00043981,30]
[340900631,1730045743126,-765.17,0.00043981,30]
[340900632,1730045743151,-765.17,0.00043981,30]
[340900633,1730045743175,-765.17,0.00043981,30]
[340900634,1730045743202,-765.17,0.00043981,30]
[340900635,1730045743226,-765.17,0.00043981,30]
[340900636,1730045743250,-765.17,0.00043981,30]
[340900637,1730045743274,-765.17,0.00043981,30]
[340900638,1730045743298,-765.17,0.00043981,30]
[340900639,1730045743322,-765.3058962,0.00043981,30]
[340900640,1730045743348,-500.0,0.00043981,120]
[340900641,1730045743377,-500.0,0.00043981,120]
[340900642,1730045743401,-500.0,0.00043981,120]
[340900643,1730045743426,-500.0,0.00043981,120]
[340900644,1730045743451,-500.0,0.00043981,120]
[340900645,1730045743475,-186.5016585,0.00043981,120]
[340900646,1730045743499,-500.0,0.00043981,30]
[340900647,1730045743525,-500.0,0.00043981,30]
[340900648,1730045743550,-500.0,0.00043981,30]
[340900649,1730045743574,-500.0,0.00043981,30]
[340900650,1730045743598,-893.92,0.00043981,30]
[340900651,1730045743624,-500.0,0.00043981,30]
[340900652,1730045743648,-893.92,0.00043981,30]
[340900653,1730045743673,-500.0,0.00043981,30]
[340900654,1730045743698,-893.92,0.00043981,30]
[340900655,1730045743725,-500.0,0.00043981,30]
[340900656,1730045743750,-893.92,0.00043981,30]
[340900657,1730045743775,-500.0,0.00043981,30]
[340900658,1730045743799,-893.92,0.00043981,30]
[340900659,1730045743825,-500.0,0.00043981,30]
[340900660,1730045743851,-893.92,0.00043981,30]
[340900661,1730045743877,-500.0,0.00043981,30]
[340900662,1730045743901,-893.92,0.00043981,30]
[340900663,1730045743925,-500.0,0.00043981,30]
[340900664,1730045743949,-893.92,0.00043981,30]
[340900665,1730045743973,-500.0,0.00043981,30]
[340900666,1730045743996,-500.0,0.00043981,30]
[340900667,1730045744020,-171.5,0.00043981,30]
[340900668,1730045744044,-893.92,0.00043981,30]
[340900669,1730045744069,-893.92,0.00043981,30]
[340900670,1730045744095,-893.92,0.00043981,30]
[340900671,1730045744124,-893.92,0.00043981,30]
[340900672,1730045744148,-893.92,0.00043981,30]
[340900673,1730045744172,-893.92,0.00043981,30]
[340900674,1730045744197,-893.92,0.00043981,30]
[340900675,1730045744220,-893.94424627,0.00043981,30]
[340900676,1730045744244,-500.0,0.00043981,30]
[340900677,1730045744268,-500.0,0.00043981,30]
[340900678,1730045744292,-500.0,0.00043981,30]
[340900679,1730045744317,-500.0,0.00043981,30]
[340900680,1730045744341,-500.0,0.00043981,30]
[340900681,1730045744367,-500.0,0.00043981,30]
[340900682,1730045744394,-500.0,0.00043981,30]
[340900683,1730045744420,-500.0,0.00043981,30]
[340900684,1730045744444,-500.0,0.00043981,30]
[340900685,1730045744469,-500.0,0.00043981,30]
[340900686,1730045744493,-500.0,0.00043981,30]
[340900687,1730045744517,-500.0,0.00043981,30]
[340900688,1730045744543,-500.0,0.00043981,30]
[340900689,1730045744569,-500.0,0.00043981,30]
[340900690,1730045744596,-500.0,0.00043981,30]
[340900691,1730045744622,-279.47643588,0.00043981,30]
[340900692,1730045744649,-782.79,0.00043981,30]
[340900693,1730045744678,-782.79,0.00043981,30]
[340900694,1730045744705,-782.79,0.00043981,30]
[340900695,1730045744732,-782.79,0.00043981,30]
[340900696,1730045744759,-782.79,0.00043981,30]
[340900697,1730045744790,-782.79,0.00043981,30]
[340900698,1730045744817,-782.79,0.00043981,30]
[340900699,1730045744843,-782.79,0.00043981,30]
[340900700,1730045744869,-782.79,0.00043981,30]
[340900701,1730045744897,-782.79,0.00043981,30]
[340900702,1730045744923,-782.79,0.00043981,30]
[340900703,1730045745050,-782.79,0.00043981,30]
[340900704,1730045745077,-782.79,0.00043981,30]
[340900705,1730045745106,-782.79,0.00043981,30]
[340900706,1730045745134,-782.79,0.00043981,30]
[340900707,1730045745160,-782.87416708,0.00043981,30]
[340900708,1730045745186,-166.85799333,0.00043981,30]
[340900709,1730045745212,-500.0,0.00043981,30]
[340900710,1730045745239,-500.0,0.00043981,30]
[340900711,1730045745265,-500.0,0.00043981,30]
[340900712,1730045745290,-500.0,0.00043981,30]
[340900713,1730045745316,-500.0,0.00043981,30]
[340900714,1730045745343,-500.0,0.00043981,30]
[340900715,1730045745372,-500.0,0.00043981,30]
[340900716,1730045745400,-378.41032401,0.00043981,30]
[340900717,1730045745427,-500.0,0.00043981,30]
[340900718,1730045745454,-500.0,0.00043981,30]
[340900719,1730045745480,-500.0,0.00043981,30]
[340900720,1730045745506,-500.0,0.00043981,30]
[340900721,1730045745532,-500.0,0.00043981,30]
[340900722,1730045745557,-500.0,0.00043981,30]
[340900723,1730045745583,-500.0,0.00043981,30]
[340900724,1730045745609,-500.0,0.00043981,30]
[340900725,1730045745640,-500.0,0.00043981,30]
[340900726,1730045745666,-500.0,0.00043981,30]
[340900727,1730045745692,-500.0,0.00043981,30]
[340900728,1730045745718,-500.0,0.00043981,30]
[340900729,1730045745744,-610.47,0.00043981,30]
[340900730,1730045745769,-526.46,0.00043981,30]
[340900731,1730045745794,-526.46,0.00043981,30]
[340900732,1730045745818,-526.46,0.00043981,30]
[340900733,1730045745843,-526.46,0.00043981,30]
[340900734,1730045745867,-526.46,0.00043981,30]
[340900735,1730045745892,-526.46,0.00043981,30]
[340900736,1730045745916,-526.46,0.00043981,30]
[340900737,1730045745939,-526.46,0.00043981,30]
[340900738,1730045745964,-526.46,0.00043981,30]
[340900739,1730045745987,-526.46,0.00043981,30]
[340900740,1730045746011,-526.46,0.00043981,30]
[340900741,1730045746035,-526.46,0.00043981,30]
[340900742,1730045746060,-526.46,0.00043981,30]
[340900743,1730045746084,-526.46,0.00043981,30]
[340900744,1730045746110,-526.46,0.00043981,30]
[340900745,1730045746134,-526.46178623,0.00043981,30]
[340900746,1730045746158,-857.85,0.00043981,30]
[340900747,1730045746182,-857.85,0.00043981,30]
[340900748,1730045746207,-857.85,0.00043981,30]
[340900749,1730045746232,-857.85,0.00043981,30]
[340900750,1730045746255,-857.85,0.00043981,30]
[340900751,1730045746280,-857.85,0.00043981,30]
[340900752,1730045746303,-857.85,0.00043981,30]
[340900753,1730045746328,-857.85,0.00043981,30]
[340900754,1730045746353,-857.85,0.00043981,30]
[340900755,1730045746379,-857.85,0.00043981,30]
[340900756,1730045746403,-857.85,0.00043981,30]
[340900757,1730045746428,-857.85,0.00043981,30]
[340900758,1730045746453,-500.0,0.00043981,30]
[340900759,1730045746477,-857.85,0.00043981,30]
[340900760,1730045746500,-500.0,0.00043981,30]
[340900761,1730045746525,-857.85,0.00043981,30]
[340900762,1730045746549,-857.85,0.00043981,30]
[340900763,1730045746572,-500.0,0.00043981,30]
[340900764,1730045746596,-500.0,0.00043981,30]
[340900765,1730045746621,-858.06147318,0.00043981,30]
[340900766,1730045746644,-517.5514399,0.00043981,30]
[340900767,1730045746668,-500.0,0.00043981,30]
[340900768,1730045746690,-540.76170624,0.00043981,30]
[340900769,1730045746714,-500.0,0.00043981,30]
[340900770,1730045746748,-500.0,0.00043981,30]
[340900771,1730045746774,-500.0,0.00043981,30]
[340900772,1730045746798,-500.0,0.00043981,30]
[340900773,1730045746822,-500.0,0.00043981,30]
[340900774,1730045746846,-500.0,0.00043981,30]
[340900775,1730045746872,-500.0,0.00043981,30]
[340900776,1730045746897,-500.0,0.00043981,30]
[340900777,1730045746922,-387.1,0.00043981,30]
[340900778,1730045746947,-500.0,0.00043981,30]
[340900779,1730045746972,-500.0,0.00043981,30]
[340900780,1730045746997,-500.0,0.00043981,30]
[340900781,1730045747022,-500.0,0.00043981,30]
[340900782,1730045747047,-500.0,0.00043981,30]
[340900783,1730045747071,-500.0,0.00043981,30]
[340900784,1730045747094,-500.0,0.00043981,30]
[340900785,1730045747122,-500.0,0.00043981,30]
[340900786,1730045747147,-552.38597951,0.00043981,30]
[340900787,1730045747174,-561.63,0.00043981,30]
[340900788,1730045747200,-561.63,0.00043981,30]
[340900789,1730045747226,-561.63,0.00043981,30]
[340900790,1730045747252,-561.63,0.00043981,30]
[340900791,1730045747277,-561.63,0.00043981,30]
[340900792,1730045747302,-561.63,0.00043981,30]
[340900793,1730045747328,-561.63,0.00043981,30]
[340900794,1730045747353,-561.63,0.00043981,30]
[340900795,1730045747509,-561.63,0.00043981,30]
[340900796,1730045747535,-561.63,0.00043981,30]
[340900797,1730045747559,-561.63,0.00043981,30]
[340900798,1730045747584,-561.63,0.00043981,30]
[340900799,1730045747609,-561.63,0.00043981,30]
[340900800,1730045747635,-561.63,0.00043981,30]
[340900801,1730045747660,-561.63,0.00043981,30]
[340900802,1730045747684,-561.68,0.00043981,30]
[340900803,1730045747710,-921.57,0.00043981,30]
[340900804,1730045747735,-921.57,0.00043981,30]
[340900805,1730045747760,-921.57,0.00043981,30]
[340900806,1730045747785,-921.57,0.00043981,30]
[340900807,1730045747809,-921.57,0.00043981,30]
[340900808,1730045747834,-921.57,0.00043981,30]
[340900809,1730045747859,-921.57,0.00043981,30]
[340900810,1730045747886,-921.57,0.00043981,30]
[340900811,1730045747910,-500.0,0.00043981,30]
[340900812,1730045747936,-921.57,0.00043981,30]
[340900813,1730045747963,-500.0,0.00043981,30]
[340900814,1730045747987,-921.57,0.00043981,30]
[340900815,1730045748013,-500.0,0.00043981,30]
[340900816,1730045748039,-500.0,0.00043981,30]
[340900817,1730045748063,-921.57,0.00043981,30]
[340900818,1730045748087,-503.44225076,0.00043981,30]
[340900819,1730045748114,-921.57,0.00043981,30]
[340900820,1730045748139,-921.57,0.00043981,30]
[340900821,1730045748164,-921.57,0.00043981,30]
[340900822,1730045748190,-921.57,0.00043981,30]
[340900823,1730045748216,-921.79,0.00043981,30]
[340900824,1730045748240,-500.0,0.00043981,30]
[340900825,1730045748265,-500.0,0.00043981,30]
[340900826,1730045748290,-327.32655047,0.00043981,30]
[340900827,1730045748315,-500.0,0.00043981,30]
[340900828,1730045748340,-219.46992124,0.00043981,30]
[340900829,1730045748367,-500.0,0.00043981,30]
[340900830,1730045748395,-500.0,0.00043981,30]
[340900831,1730045748422,-592.62670289,0.00043981,30]
[340900832,1730045748448,-500.0,0.00043981,30]
[340900833,1730045748474,-500.0,0.00043981,30]
[340900834,1730045748500,-223.87,0.00043981,30]
[340900835,1730045748527,-500.0,0.00043981,30]
[340900836,1730045748552,-500.0,0.00043981,30]
[340900837,1730045748577,-500.0,0.00043981,30]
[340900838,1730045748601,-464.63243214,0.00043981,30]
[340900839,1730045748640,-500.0,0.00043981,30]
[340900840,1730045748672,-500.0,0.00043981,30]
[340900841,1730045748708,-500.0,0.00043981,30]
[340900842,1730045748746,-500.0,0.00043981,30]
[340900843,1730045748780,-500.0,0.00043981,30]
[340900844,1730045748814,-500.0,0.00043981,30]
[340900845,1730045748849,-500.0,0.00043981,30]
[340900846,1730045748880,-500.0,0.00043981,30]
[340900847,1730045748915,-500.0,0.00043981,30]
[340900848,1730045748951,-500.0,0.00043981,30]
[340900849,1730045748985,-500.0,0.00043981,30]
[340900850,1730045749015,-500.0,0.00043981,30]
[340900851,1730045749053,-494.66,0.00043981,30]
[340900852,1730045749089,-500.0,0.00043981,30]
[340900853,1730045749136,-500.0,0.00043981,30]
[340900854,1730045749171,-500.0,0.00043981,30]
[340900855,1730045749207,-500.0,0.00043981,30]
[340900856,1730045749240,-500.0,0.00043981,30]
[340900857,1730045749271,-500.0,0.00043981,30]
[340900858,1730045749302,-500.0,0.00043981,30]
[340900859,1730045749332,-500.0,0.00043981,30]
[340900860,1730045749364,-279.39,0.00043981,30]
[340900861,1730045749398,-500.0,0.00043981,30]
[340900862,1730045749429,-500.0,0.00043981,30]
[340900863,1730045749460,-500.0,0.00043981,30]
[340900864,1730045749490,-500.0,0.00043981,30]
[340900865,1730045749519,-500.0,0.00043981,30]
[340900866,1730045749549,-500.0,0.00043981,30]
[340900867,1730045749578,-483.08,0.00043981,30]
[340900868,1730045749607,-2888.14985147,0.0004399,120]
[340900869,1730045749639,-1000.0,0.00043999,120]
[340900870,1730045749669,-211.99,0.00044,30]
[340900871,1730045749698,-35760.36,0.00044,30]
[340900872,1730045749727,-154.13,0.00044,60]
[340900873,1730045749756,-77900.0,0.00044,30]
[340900874,1730045749787,-156.83,0.00044,36]
[340900875,1730045749819,-156.83,0.00044,36]
[340900876,1730045749850,-156.83,0.00044,36]
[340900877,1730045749883,-502.697513,0.00044,57]
[340900878,1730045749914,-503.331584,0.00044,57]
[340900879,1730045749945,-150.0,0.00044075,30]
[340900880,1730045749974,-29313.8,0.00044078,30]
[340900881,1730045750005,-397.0,0.000441,31]
[340900882,1730045750034,-794.0,0.000441,31]
[340900883,1730045750229,-794.0,0.000441,31]
[340900884,1730045750258,-397.0,0.000441,31]
[340900885,1730045750284,-150.0,0.000441,34]
[340900886,1730045750310,-302.84,0.000441,74]
[340900887,1730045750335,-678.0,0.00044107,120]
[340900888,1730045750359,-1397.85,0.00044109,30]
[340900889,1730045750386,-1397.85,0.00044109,30]
[340900890,1730045750410,-1397.85,0.00044109,30]
[340900891,1730045750434,-1397.85,0.00044109,30]
[340900892,1730045750458,-1397.85,0.00044109,30]
[340900893,1730045750482,-1397.85,0.00044109,30]
[340900894,1730045750505,-1397.85,0.00044109,30]
[340900895,1730045750529,-1397.85,0.00044109,30]
[340900896,1730045750553,-1397.85,0.00044109,30]
[340900897,1730045750576,-1397.85,0.00044109,30]
[340900898,1730045750601,-1397.85,0.00044109,30]
[340900899,1730045750627,-1397.85,0.00044109,30]
[340900900,1730045750651,-1397.85,0.00044109,30]
[340900901,1730045750676,-1397.85,0.00044109,30]
[340900902,1730045750702,-1397.85,0.00044109,30]
[340900903,1730045750727,-1397.85,0.00044109,30]
[340900904,1730045750751,-1397.85,0.00044109,30]
[340900905,1730045750775,-1397.85,0.00044109,30]
[340900906,1730045750798,-1397.85,0.00044109,30]
[340900907,1730045750822,-1397.85,0.00044109,30]
[340900908,1730045750846,-1397.85,0.00044109,30]
[340900909,1730045750870,-1397.85,0.00044109,30]
[340900910,1730045750896,-1397.85,0.00044109,30]
[340900911,1730045750920,-1398.06815613,0.00044109,30]
[340900912,1730045750945,-5000.0,0.00044124,30]
[340900913,1730045750969,-5000.0,0.00044124,30]
[340900914,1730045750994,-5000.0,0.00044124,30]
[340900915,1730045751019,-5000.0,0.00044124,30]
[340900916,1730045751045,-150256.0,0.0004414,30]
[340900917,1730045751069,-2000.0,0.0004414,30]
[340900918,1730045751096,-2000.0,0.0004415,30]
[340900919,1730045751127,-150.0,0.0004416,30]
[340900920,1730045751152,-664.16256825,0.00044164,30]
[340900921,1730045751177,-212.0,0.0004418,30]
[340900922,1730045751203,-205.0,0.0004418,30]
[340900923,1730045751229,-216.0,0.0004418,30]
[340900924,1730045751257,-2110.0,0.00044186,30]
[340900925,1730045751282,-232.0,0.00044186,30]
[340900926,1730045751308,-1000.0,0.000442,30]
[340900927,1730045751332,-224.5276,0.000442,30]
[340900928,1730045751356,-224.5276,0.000442,30]
[340900929,1730045751380,-696.0,0.00044234,60]
[340900930,1730045751405,-921.64253222,0.00044234,60]
[340900931,1730045751429,-500.0,0.00044234,60]
[340900932,1730045751454,-500.0,0.00044234,60]
[340900933,1730045751479,-250000.0,0.000444,30]
[340900934,1730045751504,-696.0,0.00044508,60]
[340900935,1730045751528,-558.97418715,0.00044508,60]
[340900936,1730045751554,-500.0,0.00044508,60]
[340900937,1730045751578,-150.0,0.000446,34]
[340900938,1730045751603,-2110.0,0.00044686,30]
[340900939,1730045751629,-1030.2,0.000447,60]
[340900940,1730045751654,-939.22,0.000447,30]
[340900941,1730045751679,-696.0,0.00044782,60]
[340900942,1730045751702,-500.0,0.00044782,60]
[340900943,1730045751726,-408.39320836,0.000448,120]
[340900944,1730045751750,-205.86521344,0.0004489,120]
[340900945,1730045751774,-619.64003295,0.00045,120]
[340900946,1730045751798,-150.0,0.00045,85]
[340900947,1730045751822,-10567.62777119,0.00045,120]
[340900948,1730045751846,-2000.0,0.00045,120]
[340900949,1730045751870,-354.59716449,0.00045,120]
[340900950,1730045751897,-5000.0,0.00045,120]
[340900951,1730045751923,-696.0,0.00045056,60]
[340900952,1730045751948,-500.0,0.00045056,60]
[340900953,1730045751974,-150.0,0.000451,35]
[340900954,1730045752001,-2110.0,0.00045186,30]
[340900955,1730045752026,-500.0,0.0004527,30]
[340900956,1730045752053,-696.0,0.0004533,60]
[340900957,1730045752078,-500.0,0.0004533,60]
[340900958,1730045752105,-1030.2,0.000454,60]
[340900959,1730045752132,-939.22,0.000455,30]
[340900960,1730045752157,-150.0,0.000456,35]
[340900961,1730045752183,-696.0,0.00045604,60]
[340900962,1730045752211,-500.0,0.00045604,60]
[340900963,1730045752236,-2110.0,0.00045686,30]
[340900964,1730045752261,-304.295263,0.00045715,86]
[340900965,1730045752286,-500.0,0.00045751,30]
[340900966,1730045752310,-696.0,0.00045878,60]
[340900967,1730045752336,-500.0,0.00045878,60]
[340900968,1730045752360,-500.0,0.00045965,30]
[340900969,1730045752387,-179.82,0.00046,96]
[340900970,1730045752413,-5767.73013939,0.00046,90]
[340900971,1730045773042,-251.24301098,0.00043835,30]
[340900972,1730045773077,-500.0,0.0004396,60]
[340900973,1730045773109,-1999.755282,0.000441,74]
[340900974,1730045773138,-500.0,0.00044234,60]
[340900975,1730045773167,-500.0,0.00044508,60]
[340900976,1730045773194,-500.0,0.00044782,60]
[340900977,1730045773222,-500.0,0.00045056,60]
[340900978,1730045773247,-500.0,0.0004533,60]
[340900979,1730045773275,-500.0,0.00045604,60]
[340900980,1730045773299,-500.0,0.00045878,60]
[340900981,1730045773327,-34232.26986061,0.00046,90]